[Event "November 21 Late 2023"]
[Site "https://www.chess.com"]
[Date "2023.11.21"]
[Round "3"]
[White "Rose, Felix"]
[Black "Urbina Perez, Juan Antonio"]
[Result "1-0"]
[Board "141"]
[TimeControl "180+1"]
[WhiteFideId "5105722"]
[BlackFideId "2217368"]
[WhiteElo "2039"]
[BlackElo "2185"]
[WhiteTeam "MEX"]
[BlackTeam "ESP"]
[WhiteClock "0:00:02"]
[BlackClock "0:00:00"]

1. e4 {[%clk 0:03:00]}  c5 {[%clk 0:02:56]} 2. Nf3 {[%clk 0:02:59]}  d6 {[%clk 0:02:57]} 3. d4 {[%clk 0:03:00]}  cxd4 {[%clk 0:02:57]} 4. Nxd4 {[%clk 0:03:01]}  Nf6 {[%clk 0:02:58]} 5. Nc3 {[%clk 0:03:01]}  Nc6 {[%clk 0:02:58]} 6. Bg5 {[%clk 0:02:58]}  Qb6 {[%clk 0:02:59]} 7. Nb3 {[%clk 0:02:54]}  e6 {[%clk 0:02:57]} 8. Qd2 {[%clk 0:02:53]}  Be7 {[%clk 0:02:54]} 9. O-O-O {[%clk 0:02:53]}  a6 {[%clk 0:02:51]} 10. h4 {[%clk 0:02:52]}  Qc7 {[%clk 0:02:44]} 11. f3 {[%clk 0:02:47]}  b5 {[%clk 0:02:39]} 12. Kb1 {[%clk 0:02:43]}  Ne5 {[%clk 0:02:23]} 13. h5 {[%clk 0:02:33]}  h6 {[%clk 0:02:21]} 14. Be3 {[%clk 0:02:27]}  Nc4 {[%clk 0:02:16]} 15. Bxc4 {[%clk 0:02:07]}  bxc4 {[%clk 0:02:17]} 16. Nd4 {[%clk 0:02:08]}  Rb8 {[%clk 0:02:12]} 17. Ka1 {[%clk 0:02:06]}  Bb7 {[%clk 0:02:01]} 18. g4 {[%clk 0:02:03]}  d5 {[%clk 0:01:59]} 19. e5 {[%clk 0:01:34]}  Nd7 {[%clk 0:01:55]} 20. f4 {[%clk 0:01:34]}  Bc5 {[%clk 0:01:38]} 21. Qf2 {[%clk 0:01:10]}  Bb4 {[%clk 0:01:31]} 22. Bd2 {[%clk 0:00:55]}  Bxc3 {[%clk 0:01:26]} 23. Bxc3 {[%clk 0:00:55]}  Nc5 {[%clk 0:01:27]} 24. Qe3 {[%clk 0:00:44]}  Ne4 {[%clk 0:01:19]} 25. Bb4 {[%clk 0:00:39]}  a5 {[%clk 0:01:18]} 26. Ba3 {[%clk 0:00:32]}  c3 {[%clk 0:01:12]} 27. b3 {[%clk 0:00:28]}  a4 {[%clk 0:01:09]} 28. Nb5 {[%clk 0:00:27]}  Qc6 {[%clk 0:01:04]} 29. Nd6+ {[%clk 0:00:23]}  Nxd6 {[%clk 0:01:02]} 30. Bxd6 {[%clk 0:00:24]}  Ra8 {[%clk 0:00:47]} 31. b4 {[%clk 0:00:22]}  Rd8 {[%clk 0:00:27]} 32. a3 {[%clk 0:00:13]}  Rxd6 {[%clk 0:00:25]} 33. exd6 {[%clk 0:00:14]}  Qxd6 {[%clk 0:00:25]} 34. Qxc3 {[%clk 0:00:09]}  O-O {[%clk 0:00:24]} 35. Rhf1 {[%clk 0:00:08]}  Rc8 {[%clk 0:00:24]} 36. Qb2 {[%clk 0:00:07]}  Rc4 {[%clk 0:00:20]} 37. f5 {[%clk 0:00:07]}  Bc8 {[%clk 0:00:17]} 38. f6 {[%clk 0:00:06]}  e5 {[%clk 0:00:16]} 39. fxg7 {[%clk 0:00:07]}  Be6 {[%clk 0:00:15]} 40. Rf2 {[%clk 0:00:06]}  d4 {[%clk 0:00:15]} 41. Rdf1 {[%clk 0:00:06]}  Rc3 {[%clk 0:00:14]} 42. g5 {[%clk 0:00:04]}  hxg5 {[%clk 0:00:12]} 43. h6 {[%clk 0:00:05]}  Bc4 {[%clk 0:00:10]} 44. Rh1 {[%clk 0:00:05]}  Kh7 {[%clk 0:00:06]} 45. Qc1 {[%clk 0:00:04]}  f6 {[%clk 0:00:02]} 46. g8=Q+ {[%clk 0:00:02]}  Kxg8 {[%clk 0:00:01]} 47. h7+ {[%clk 0:00:03]}  Kh8 {[%clk 0:00:00]} 48. Qxg5 {[%clk 0:00:02]} 1-0

[Event "November 21 Late 2023"]
[Site "https://www.chess.com"]
[Date "2023.11.21"]
[Round "3"]
[White "Ventura Bolet, Maxim"]
[Black "Harish, Neeraj"]
[Result "1-0"]
[Board "142"]
[TimeControl "180+1"]
[WhiteFideId "22238824"]
[BlackFideId "30958130"]
[WhiteElo "2227"]
[BlackElo "1866"]
[WhiteTeam "ESP"]
[BlackTeam "USA"]
[WhiteClock "0:02:06"]
[BlackClock "0:01:46"]

1. Nf3 {[%clk 0:03:00]}  d5 {[%clk 0:02:35]} 2. g3 {[%clk 0:03:00]}  Nf6 {[%clk 0:02:35]} 3. Bg2 {[%clk 0:03:00]}  e6 {[%clk 0:02:35]} 4. O-O {[%clk 0:03:00]}  Be7 {[%clk 0:02:35]} 5. d3 {[%clk 0:03:01]}  O-O {[%clk 0:02:36]} 6. Nbd2 {[%clk 0:03:01]}  c5 {[%clk 0:02:37]} 7. e4 {[%clk 0:03:01]}  Nc6 {[%clk 0:02:38]} 8. Re1 {[%clk 0:03:00]}  Qc7 {[%clk 0:02:37]} 9. Nf1 {[%clk 0:02:50]}  b5 {[%clk 0:02:33]} 10. e5 {[%clk 0:02:50]}  Nd7 {[%clk 0:02:33]} 11. Bf4 {[%clk 0:02:51]}  Rd8 {[%clk 0:02:25]} 12. h4 {[%clk 0:02:50]}  b4 {[%clk 0:02:25]} 13. Ne3 {[%clk 0:02:41]}  a5 {[%clk 0:02:23]} 14. Nxd5 {[%clk 0:02:39]}  exd5 {[%clk 0:02:19]} 15. e6 {[%clk 0:02:40]}  Bd6 {[%clk 0:02:19]} 16. exf7+ {[%clk 0:02:23]}  Kxf7 {[%clk 0:02:13]} 17. Ng5+ {[%clk 0:02:23]}  Kg8 {[%clk 0:02:13]} 18. Bxd5+ {[%clk 0:02:19]}  Kh8 {[%clk 0:01:56]} 19. Bxd6 {[%clk 0:02:09]}  Qb6 {[%clk 0:01:48]} 20. Nf7+ {[%clk 0:02:06]}  Kg8 {[%clk 0:01:46]} 21. Nxd8+ {[%clk 0:02:06]} 1-0

[Event "November 21 Late 2023"]
[Site "https://www.chess.com"]
[Date "2023.11.21"]
[Round "3"]
[White "Mendez Machado, Andre"]
[Black "Ongut, Tamas Gunes"]
[Result "0-1"]
[Board "144"]
[TimeControl "180+1"]
[WhiteFideId "6603793"]
[BlackFideId "770280"]
[WhiteElo "1950"]
[BlackElo "2148"]
[WhiteTeam "PAN"]
[BlackTeam "HUN"]
[WhiteClock "0:00:02"]
[BlackClock "0:00:49"]

1. e4 {[%clk 0:03:00]}  c5 {[%clk 0:02:58]} 2. Nc3 {[%clk 0:03:00]}  a6 {[%clk 0:02:51]} 3. Be2 {[%clk 0:03:00]}  b5 {[%clk 0:02:46]} 4. f4 {[%clk 0:02:53]}  b4 {[%clk 0:02:42]} 5. Na4 {[%clk 0:02:53]}  d5 {[%clk 0:02:39]} 6. exd5 {[%clk 0:02:35]}  Qd7 {[%clk 0:02:36]} 7. Nb6 {[%clk 0:02:33]}  Qb7 {[%clk 0:02:26]} 8. Nxa8 {[%clk 0:02:32]}  Qxa8 {[%clk 0:02:27]} 9. Bf3 {[%clk 0:02:29]}  Bb7 {[%clk 0:02:27]} 10. c4 {[%clk 0:02:29]}  Nf6 {[%clk 0:02:24]} 11. Nh3 {[%clk 0:02:17]}  g6 {[%clk 0:02:23]} 12. O-O {[%clk 0:02:16]}  Bg7 {[%clk 0:02:24]} 13. Nf2 {[%clk 0:02:04]}  O-O {[%clk 0:02:22]} 14. Re1 {[%clk 0:02:01]}  Nbd7 {[%clk 0:02:18]} 15. Rb1 {[%clk 0:01:55]}  Ne8 {[%clk 0:02:07]} 16. b3 {[%clk 0:01:52]}  Nd6 {[%clk 0:01:56]} 17. Rxe7 {[%clk 0:01:46]}  Nf6 {[%clk 0:01:53]} 18. Bb2 {[%clk 0:01:41]}  Qd8 {[%clk 0:01:48]} 19. Re1 {[%clk 0:01:34]}  Nf5 {[%clk 0:01:45]} 20. Ne4 {[%clk 0:01:19]}  Nxe4 {[%clk 0:01:40]} 21. Bxg7 {[%clk 0:01:17]}  Nf2 {[%clk 0:01:33]} 22. Kxf2 {[%clk 0:01:14]}  Qh4+ {[%clk 0:01:32]} 23. Kg1 {[%clk 0:01:12]}  Kxg7 {[%clk 0:01:32]} 24. Qe2 {[%clk 0:00:54]}  Qxf4 {[%clk 0:01:30]} 25. Qe5+ {[%clk 0:00:54]}  Qxe5 {[%clk 0:01:30]} 26. Rxe5 {[%clk 0:00:55]}  Kf6 {[%clk 0:01:30]} 27. Rbe1 {[%clk 0:00:53]}  Nd6 {[%clk 0:01:30]} 28. Re7 {[%clk 0:00:50]}  Bc8 {[%clk 0:01:18]} 29. Ra7 {[%clk 0:00:45]}  g5 {[%clk 0:01:13]} 30. Bd1 {[%clk 0:00:37]}  Nf5 {[%clk 0:01:10]} 31. Bc2 {[%clk 0:00:32]}  Nd4 {[%clk 0:01:11]} 32. Bd3 {[%clk 0:00:27]}  Bg4 {[%clk 0:00:57]} 33. Rf1+ {[%clk 0:00:23]}  Kg7 {[%clk 0:00:56]} 34. d6 {[%clk 0:00:20]}  Be6 {[%clk 0:00:54]} 35. Rxa6 {[%clk 0:00:19]}  Rd8 {[%clk 0:00:54]} 36. Re1 {[%clk 0:00:17]}  Kf6 {[%clk 0:00:53]} 37. Be4 {[%clk 0:00:15]}  h5 {[%clk 0:00:53]} 38. h3 {[%clk 0:00:11]}  h4 {[%clk 0:00:52]} 39. d3 {[%clk 0:00:09]}  Ke5 {[%clk 0:00:50]} 40. Bd5+ {[%clk 0:00:08]}  Kf6 {[%clk 0:00:50]} 41. Bxe6 {[%clk 0:00:08]}  fxe6 {[%clk 0:00:50]} 42. Kh2 {[%clk 0:00:06]}  Nf5 {[%clk 0:00:49]} 43. Rc6 {[%clk 0:00:04]}  Nxd6 {[%clk 0:00:46]} 44. Rxc5 {[%clk 0:00:05]}  Nf5 {[%clk 0:00:47]} 45. Rce5 {[%clk 0:00:05]}  Rxd3 {[%clk 0:00:47]} 46. Rxe6+ {[%clk 0:00:05]}  Kf7 {[%clk 0:00:48]} 47. R6e5 {[%clk 0:00:05]}  Ng3 {[%clk 0:00:49]} 48. Rxg5 {[%clk 0:00:05]}  Kf6 {[%clk 0:00:50]} 49. Rg4 {[%clk 0:00:05]}  Rd2 {[%clk 0:00:51]} 50. Rxh4 {[%clk 0:00:05]}  Nf5 {[%clk 0:00:52]} 51. Rf4 {[%clk 0:00:05]}  Kg5 {[%clk 0:00:53]} 52. Ref1 {[%clk 0:00:05]}  Ne3 {[%clk 0:00:53]} 53. Rg1 {[%clk 0:00:04]}  Kxf4 {[%clk 0:00:52]} 54. Kh1 {[%clk 0:00:04]}  Kg3 {[%clk 0:00:52]} 55. Rc1 {[%clk 0:00:03]}  Nxg2 {[%clk 0:00:51]} 56. c5 {[%clk 0:00:03]}  Nf4 {[%clk 0:00:51]} 57. c6 {[%clk 0:00:04]}  Rh2+ {[%clk 0:00:51]} 58. Kg1 {[%clk 0:00:04]}  Ne2+ {[%clk 0:00:47]} 59. Kf1 {[%clk 0:00:05]}  Nxc1 {[%clk 0:00:48]} 60. c7 {[%clk 0:00:02]}  Rc2 {[%clk 0:00:49]} 0-1

[Event "November 21 Late 2023"]
[Site "https://www.chess.com"]
[Date "2023.11.21"]
[Round "3"]
[White "Miguelitro69"]
[Black "Weisz, Bryan"]
[Result "0-1"]
[Board "147"]
[TimeControl "180+1"]
[BlackFideId "30934133"]
[WhiteElo "2273"]
[BlackElo "2438"]
[BlackTeam "USA"]
[WhiteClock "0:00:02"]
[BlackClock "0:01:44"]

1. e4 {[%clk 0:03:00]}  c6 {[%clk 0:03:00]} 2. d4 {[%clk 0:03:00]}  Na6 {[%clk 0:03:01]} 3. Nc3 {[%clk 0:02:48]}  Nc7 {[%clk 0:02:59]} 4. Bd3 {[%clk 0:02:44]}  d5 {[%clk 0:02:59]} 5. Nge2 {[%clk 0:02:35]}  Nf6 {[%clk 0:02:57]} 6. e5 {[%clk 0:02:32]}  Nd7 {[%clk 0:02:58]} 7. O-O {[%clk 0:02:31]}  c5 {[%clk 0:02:57]} 8. dxc5 {[%clk 0:02:27]}  Nxe5 {[%clk 0:02:50]} 9. Nf4 {[%clk 0:02:02]}  e6 {[%clk 0:02:39]} 10. Re1 {[%clk 0:01:58]}  Ng6 {[%clk 0:02:32]} 11. Nfxd5 {[%clk 0:01:50]}  Nxd5 {[%clk 0:02:28]} 12. Nxd5 {[%clk 0:01:50]}  Qxd5 {[%clk 0:02:23]} 13. Bb5+ {[%clk 0:01:49]}  Kd8 {[%clk 0:02:24]} 14. h4 {[%clk 0:01:30]}  Bxc5 {[%clk 0:02:01]} 15. h5 {[%clk 0:01:24]}  Ne7 {[%clk 0:02:00]} 16. Qg4 {[%clk 0:01:15]}  Qf5 {[%clk 0:01:56]} 17. Rd1+ {[%clk 0:01:07]}  Kc7 {[%clk 0:01:54]} 18. Qa4 {[%clk 0:00:55]}  Bxf2+ {[%clk 0:01:48]} 19. Kf1 {[%clk 0:00:22]}  Bb6+ {[%clk 0:01:47]} 20. Bf4+ {[%clk 0:00:15]}  e5 {[%clk 0:01:47]} 21. Qc4+ {[%clk 0:00:09]}  Nc6 {[%clk 0:01:44]} 22. Qd5 {[%clk 0:00:03]}  Qxf4+ {[%clk 0:01:44]} 23. Ke1 {[%clk 0:00:02]}  Qf2# {[%clk 0:01:44]} 0-1

[Event "November 21 Late 2023"]
[Site "https://www.chess.com"]
[Date "2023.11.21"]
[Round "3"]
[White "Reprintsev, Alexander"]
[Black "Zeydan, Salih"]
[Result "1-0"]
[Board "149"]
[TimeControl "180+1"]
[WhiteFideId "14100541"]
[BlackFideId "6361722"]
[WhiteElo "2229"]
[BlackElo "1988"]
[WhiteTeam "UKR"]
[BlackTeam "TUR"]
[WhiteClock "0:00:45"]
[BlackClock "0:00:08"]

1. e4 {[%clk 0:03:00]}  c5 {[%clk 0:02:57]} 2. b3 {[%clk 0:02:58]}  Nc6 {[%clk 0:02:54]} 3. Bb2 {[%clk 0:02:58]}  d6 {[%clk 0:02:54]} 4. Bb5 {[%clk 0:02:58]}  Bd7 {[%clk 0:02:54]} 5. Ne2 {[%clk 0:02:58]}  a6 {[%clk 0:02:52]} 6. Bxc6 {[%clk 0:02:58]}  Bxc6 {[%clk 0:02:53]} 7. f3 {[%clk 0:02:56]}  d5 {[%clk 0:02:47]} 8. exd5 {[%clk 0:02:43]}  Qxd5 {[%clk 0:02:36]} 9. Nbc3 {[%clk 0:02:41]}  Qd7 {[%clk 0:02:36]} 10. d4 {[%clk 0:02:35]}  e6 {[%clk 0:02:25]} 11. dxc5 {[%clk 0:02:34]}  Bxc5 {[%clk 0:02:05]} 12. Qxd7+ {[%clk 0:02:33]}  Bxd7 {[%clk 0:02:06]} 13. O-O-O {[%clk 0:02:33]}  Nf6 {[%clk 0:02:02]} 14. Ng3 {[%clk 0:02:21]}  Bc6 {[%clk 0:02:00]} 15. Nce4 {[%clk 0:02:15]}  Nxe4 {[%clk 0:01:59]} 16. Nxe4 {[%clk 0:02:10]}  Bxe4 {[%clk 0:01:58]} 17. fxe4 {[%clk 0:02:10]}  Ke7 {[%clk 0:01:51]} 18. Bxg7 {[%clk 0:02:08]}  Rhg8 {[%clk 0:01:51]} 19. Bd4 {[%clk 0:02:04]}  Bxd4 {[%clk 0:01:50]} 20. Rxd4 {[%clk 0:02:04]}  Rxg2 {[%clk 0:01:51]} 21. Rhd1 {[%clk 0:02:03]}  Rc8 {[%clk 0:01:51]} 22. Rd7+ {[%clk 0:01:58]}  Ke8 {[%clk 0:01:47]} 23. R7d2 {[%clk 0:01:56]}  Rxd2 {[%clk 0:01:42]} 24. Rxd2 {[%clk 0:01:56]}  Ke7 {[%clk 0:01:40]} 25. Kb2 {[%clk 0:01:51]}  Rg8 {[%clk 0:01:38]} 26. Kc3 {[%clk 0:01:43]}  Rg4 {[%clk 0:01:37]} 27. Re2 {[%clk 0:01:32]}  Kd6 {[%clk 0:01:30]} 28. e5+ {[%clk 0:01:25]}  Ke7 {[%clk 0:01:16]} 29. a4 {[%clk 0:01:20]}  b5 {[%clk 0:01:10]} 30. a5 {[%clk 0:01:17]}  h5 {[%clk 0:01:08]} 31. Kd3 {[%clk 0:01:17]}  f6 {[%clk 0:00:54]} 32. exf6+ {[%clk 0:01:16]}  Kxf6 {[%clk 0:00:55]} 33. c4 {[%clk 0:01:16]}  bxc4+ {[%clk 0:00:53]} 34. bxc4 {[%clk 0:01:08]}  e5 {[%clk 0:00:54]} 35. Rb2 {[%clk 0:01:03]}  Kf5 {[%clk 0:00:52]} 36. c5 {[%clk 0:01:01]}  Ra4 {[%clk 0:00:44]} 37. c6 {[%clk 0:00:55]}  e4+ {[%clk 0:00:40]} 38. Ke3 {[%clk 0:00:53]}  Rxa5 {[%clk 0:00:34]} 39. Rc2 {[%clk 0:00:52]}  Ra3+ {[%clk 0:00:30]} 40. Ke2 {[%clk 0:00:48]}  Rh3 {[%clk 0:00:18]} 41. Rc5+ {[%clk 0:00:45]}  Ke6 {[%clk 0:00:17]} 42. c7 {[%clk 0:00:46]}  Rxh2+ {[%clk 0:00:08]} 43. Ke3 {[%clk 0:00:45]} 1-0

[Event "November 21 Late 2023"]
[Site "https://www.chess.com"]
[Date "2023.11.21"]
[Round "3"]
[White "Sarkar, Justin"]
[Black "Kostiukov, Alexandr"]
[Result "1/2-1/2"]
[Board "150"]
[TimeControl "180+1"]
[WhiteFideId "2010011"]
[BlackFideId "14108100"]
[WhiteElo "2138"]
[BlackElo "2144"]
[WhiteTeam "USA"]
[BlackTeam "UKR"]
[WhiteClock "0:00:17"]
[BlackClock "0:01:27"]

1. d4 {[%clk 0:02:40]}  g6 {[%clk 0:02:58]} 2. Bf4 {[%clk 0:02:23]}  Bg7 {[%clk 0:02:57]} 3. e3 {[%clk 0:02:22]}  d6 {[%clk 0:02:56]} 4. Nf3 {[%clk 0:02:11]}  Nc6 {[%clk 0:02:56]} 5. c4 {[%clk 0:01:56]}  e5 {[%clk 0:02:56]} 6. dxe5 {[%clk 0:01:55]}  Nxe5 {[%clk 0:02:57]} 7. Nxe5 {[%clk 0:01:52]}  dxe5 {[%clk 0:02:57]} 8. Qxd8+ {[%clk 0:01:51]}  Kxd8 {[%clk 0:02:58]} 9. Bg3 {[%clk 0:01:51]}  Be6 {[%clk 0:02:59]} 10. Nc3 {[%clk 0:01:49]}  c6 {[%clk 0:02:58]} 11. O-O-O+ {[%clk 0:01:47]}  Ke7 {[%clk 0:02:57]} 12. Ne4 {[%clk 0:01:38]}  b6 {[%clk 0:02:55]} 13. f4 {[%clk 0:01:33]}  f5 {[%clk 0:02:46]} 14. Bh4+ {[%clk 0:01:29]}  Nf6 {[%clk 0:02:34]} 15. fxe5 {[%clk 0:01:22]}  fxe4 {[%clk 0:02:33]} 16. exf6+ {[%clk 0:01:18]}  Bxf6 {[%clk 0:02:34]} 17. Bxf6+ {[%clk 0:01:16]}  Kxf6 {[%clk 0:02:35]} 18. Be2 {[%clk 0:01:15]}  Ke5 {[%clk 0:02:30]} 19. Rhf1 {[%clk 0:01:06]}  Rhf8 {[%clk 0:02:28]} 20. g3 {[%clk 0:01:05]}  g5 {[%clk 0:02:16]} 21. Rxf8 {[%clk 0:01:00]}  Rxf8 {[%clk 0:02:15]} 22. Rf1 {[%clk 0:01:00]}  Rxf1+ {[%clk 0:02:10]} 23. Bxf1 {[%clk 0:01:00]}  a5 {[%clk 0:02:08]} 24. Be2 {[%clk 0:00:58]}  Kd6 {[%clk 0:02:06]} 25. Kd2 {[%clk 0:00:57]}  Kc5 {[%clk 0:02:05]} 26. Kc3 {[%clk 0:00:55]}  b5 {[%clk 0:02:05]} 27. cxb5 {[%clk 0:00:53]}  cxb5 {[%clk 0:02:06]} 28. a3 {[%clk 0:00:51]}  b4+ {[%clk 0:02:07]} 29. axb4+ {[%clk 0:00:50]}  axb4+ {[%clk 0:02:08]} 30. Kc2 {[%clk 0:00:48]}  h6 {[%clk 0:01:53]} 31. b3 {[%clk 0:00:46]}  Kd6 {[%clk 0:01:46]} 32. Kb2 {[%clk 0:00:44]}  Ke5 {[%clk 0:01:46]} 33. Kc2 {[%clk 0:00:44]}  Bh3 {[%clk 0:01:42]} 34. Kd2 {[%clk 0:00:41]}  Bg2 {[%clk 0:01:39]} 35. Bg4 {[%clk 0:00:24]}  Bf3 {[%clk 0:01:34]} 36. Bd7 {[%clk 0:00:22]}  Bh5 {[%clk 0:01:33]} 37. Bc8 {[%clk 0:00:20]}  Bf7 {[%clk 0:01:33]} 38. Kc2 {[%clk 0:00:19]}  Be6 {[%clk 0:01:32]} 39. Bxe6 {[%clk 0:00:17]}  Kxe6 {[%clk 0:01:33]} 40. g4 {[%clk 0:00:17]}  Ke5 {[%clk 0:01:32]} 41. Kd2 {[%clk 0:00:17]}  Kf6 {[%clk 0:01:27]} 42. Ke2 {[%clk 0:00:17]} 1/2-1/2

[Event "November 21 Late 2023"]
[Site "https://www.chess.com"]
[Date "2023.11.21"]
[Round "3"]
[White "mataMNsMS"]
[Black "szachmistrz2500"]
[Result "0-1"]
[Board "151"]
[TimeControl "180+1"]
[WhiteElo "2252"]
[BlackElo "2426"]
[WhiteClock "0:01:50"]
[BlackClock "0:02:05"]

1. d4 {[%clk 0:03:00]}  d5 {[%clk 0:02:57]} 2. Nf3 {[%clk 0:03:00]}  Nf6 {[%clk 0:02:55]} 3. Bf4 {[%clk 0:03:00]}  c6 {[%clk 0:02:55]} 4. e3 {[%clk 0:03:01]}  Bg4 {[%clk 0:02:54]} 5. Nbd2 {[%clk 0:02:56]}  e6 {[%clk 0:02:52]} 6. c3 {[%clk 0:02:57]}  Nbd7 {[%clk 0:02:50]} 7. Qb3 {[%clk 0:02:57]}  Qb6 {[%clk 0:02:50]} 8. h3 {[%clk 0:02:53]}  Bh5 {[%clk 0:02:47]} 9. Bd3 {[%clk 0:02:52]}  Be7 {[%clk 0:02:46]} 10. Ne5 {[%clk 0:02:51]}  Nxe5 {[%clk 0:02:44]} 11. Bxe5 {[%clk 0:02:51]}  O-O {[%clk 0:02:44]} 12. O-O {[%clk 0:02:44]}  Nd7 {[%clk 0:02:43]} 13. Bh2 {[%clk 0:02:42]}  c5 {[%clk 0:02:43]} 14. Qxb6 {[%clk 0:02:41]}  Nxb6 {[%clk 0:02:36]} 15. f4 {[%clk 0:02:35]}  Bg6 {[%clk 0:02:31]} 16. Bxg6 {[%clk 0:02:35]}  hxg6 {[%clk 0:02:30]} 17. g4 {[%clk 0:02:36]}  Rac8 {[%clk 0:02:26]} 18. Nf3 {[%clk 0:02:33]}  Nc4 {[%clk 0:02:22]} 19. b3 {[%clk 0:02:23]}  Nxe3 {[%clk 0:02:18]} 20. Rf2 {[%clk 0:02:23]}  cxd4 {[%clk 0:02:18]} 21. cxd4 {[%clk 0:02:12]}  Rc3 {[%clk 0:02:08]} 22. Re1 {[%clk 0:02:00]}  Rfc8 {[%clk 0:02:07]} 23. Rfe2 {[%clk 0:01:59]}  Nc2 {[%clk 0:02:06]} 24. Rd1 {[%clk 0:01:50]}  Rxf3 {[%clk 0:02:05]} 0-1

[Event "November 21 Late 2023"]
[Site "https://www.chess.com"]
[Date "2023.11.21"]
[Round "3"]
[White "Estrada Nieto, Julian"]
[Black "Butti, Enrique"]
[Result "1-0"]
[Board "152"]
[TimeControl "180+1"]
[WhiteFideId "5101018"]
[BlackFideId "3700470"]
[WhiteElo "2161"]
[BlackElo "2080"]
[WhiteTeam "ESP"]
[BlackTeam "PAR"]
[WhiteClock "0:00:58"]
[BlackClock "0:00:33"]

1. e4 {[%clk 0:03:00]}  c5 {[%clk 0:02:59]} 2. Nf3 {[%clk 0:03:01]}  d6 {[%clk 0:02:59]} 3. d4 {[%clk 0:03:01]}  cxd4 {[%clk 0:02:59]} 4. Qxd4 {[%clk 0:03:02]}  Nf6 {[%clk 0:03:00]} 5. Nc3 {[%clk 0:03:01]}  a6 {[%clk 0:02:59]} 6. Bc4 {[%clk 0:03:01]}  Nc6 {[%clk 0:02:59]} 7. Qd3 {[%clk 0:03:02]}  Bg4 {[%clk 0:02:55]} 8. Bg5 {[%clk 0:02:57]}  Bxf3 {[%clk 0:02:50]} 9. Qxf3 {[%clk 0:02:55]}  Ne5 {[%clk 0:02:49]} 10. Qe2 {[%clk 0:02:55]}  Rc8 {[%clk 0:02:47]} 11. Bb3 {[%clk 0:02:55]}  Rxc3 {[%clk 0:02:34]} 12. bxc3 {[%clk 0:02:54]}  Qc7 {[%clk 0:02:30]} 13. O-O {[%clk 0:02:47]}  Ned7 {[%clk 0:02:16]} 14. f4 {[%clk 0:02:34]}  e6 {[%clk 0:02:15]} 15. f5 {[%clk 0:02:29]}  e5 {[%clk 0:02:10]} 16. Rad1 {[%clk 0:02:13]}  Be7 {[%clk 0:02:07]} 17. Rd3 {[%clk 0:02:07]}  O-O {[%clk 0:02:01]} 18. Bxf6 {[%clk 0:02:04]}  Nxf6 {[%clk 0:02:00]} 19. Rh3 {[%clk 0:01:59]}  Rd8 {[%clk 0:01:41]} 20. Rd1 {[%clk 0:01:49]}  d5 {[%clk 0:01:31]} 21. Bxd5 {[%clk 0:01:47]}  Nxd5 {[%clk 0:01:29]} 22. exd5 {[%clk 0:01:41]}  Qc5+ {[%clk 0:01:25]} 23. Qf2 {[%clk 0:01:34]}  Rxd5 {[%clk 0:01:20]} 24. Rhd3 {[%clk 0:01:22]}  Rxd3 {[%clk 0:01:08]} 25. Rxd3 {[%clk 0:01:22]}  Qc7 {[%clk 0:01:07]} 26. Qf3 {[%clk 0:01:18]}  Bc5+ {[%clk 0:01:02]} 27. Kf1 {[%clk 0:01:18]}  h6 {[%clk 0:01:01]} 28. Qd5 {[%clk 0:01:17]}  Kh7 {[%clk 0:00:58]} 29. f6 {[%clk 0:01:10]}  gxf6 {[%clk 0:00:56]} 30. Qd7 {[%clk 0:01:09]}  Qxd7 {[%clk 0:00:49]} 31. Rxd7 {[%clk 0:01:09]}  Kg6 {[%clk 0:00:49]} 32. Rxb7 {[%clk 0:01:08]}  e4 {[%clk 0:00:48]} 33. Ke2 {[%clk 0:01:04]}  f5 {[%clk 0:00:47]} 34. Rc7 {[%clk 0:01:02]}  Bf8 {[%clk 0:00:44]} 35. Rc6+ {[%clk 0:01:02]}  f6 {[%clk 0:00:43]} 36. Rxa6 {[%clk 0:01:02]}  f4 {[%clk 0:00:42]} 37. Re6 {[%clk 0:01:01]}  e3 {[%clk 0:00:40]} 38. Kf3 {[%clk 0:00:58]}  Kf5 {[%clk 0:00:40]} 39. Re8 {[%clk 0:00:58]}  Bc5 {[%clk 0:00:33]} 40. a4 {[%clk 0:00:58]} 1-0

[Event "November 21 Late 2023"]
[Site "https://www.chess.com"]
[Date "2023.11.21"]
[Round "3"]
[White "Bullen, Alex"]
[Black "Balla, Tamas-Kristof"]
[Result "1-0"]
[Board "153"]
[TimeControl "180+1"]
[WhiteFideId "1801627"]
[BlackFideId "1208497"]
[WhiteElo "2078"]
[BlackElo "2306"]
[WhiteTeam "WLS"]
[BlackTeam "ROU"]
[WhiteClock "0:02:21"]
[BlackClock "0:02:26"]

1. d4 {[%clk 0:03:00]}  d5 {[%clk 0:02:59]} 2. Nf3 {[%clk 0:03:01]}  Nf6 {[%clk 0:02:59]} 3. Bf4 {[%clk 0:03:01]}  e6 {[%clk 0:02:59]} 4. e3 {[%clk 0:03:02]}  Bd6 {[%clk 0:02:59]} 5. Bg3 {[%clk 0:03:02]}  O-O {[%clk 0:02:59]} 6. Bd3 {[%clk 0:03:02]}  b6 {[%clk 0:03:00]} 7. c3 {[%clk 0:03:02]}  c5 {[%clk 0:02:59]} 8. Nbd2 {[%clk 0:03:02]}  Ba6 {[%clk 0:02:59]} 9. Bxa6 {[%clk 0:02:57]}  Nxa6 {[%clk 0:03:00]} 10. O-O {[%clk 0:02:57]}  Nb8 {[%clk 0:02:59]} 11. Qc2 {[%clk 0:02:57]}  Nc6 {[%clk 0:02:58]} 12. dxc5 {[%clk 0:02:54]}  Bxg3 {[%clk 0:02:56]} 13. hxg3 {[%clk 0:02:53]}  bxc5 {[%clk 0:02:56]} 14. e4 {[%clk 0:02:53]}  d4 {[%clk 0:02:56]} 15. cxd4 {[%clk 0:02:44]}  Nxd4 {[%clk 0:02:51]} 16. Qxc5 {[%clk 0:02:31]}  Nxf3+ {[%clk 0:02:51]} 17. Nxf3 {[%clk 0:02:31]}  Nxe4 {[%clk 0:02:51]} 18. Qd4 {[%clk 0:02:29]}  Qxd4 {[%clk 0:02:45]} 19. Nxd4 {[%clk 0:02:30]}  Rfd8 {[%clk 0:02:45]} 20. Rfd1 {[%clk 0:02:28]}  Rac8 {[%clk 0:02:45]} 21. Nc6 {[%clk 0:02:23]}  Rxd1+ {[%clk 0:02:35]} 22. Rxd1 {[%clk 0:02:22]}  h6 {[%clk 0:02:26]} 23. Ne7+ {[%clk 0:02:21]} 1-0